bitfinex-derivatives/quotes_BTCF0:USTF0_20220103
["timestamp","ask_amount","ask_price","bid_price","bid_amount"]
[1641247148408,0.8511943,46035.0,46034.0,0.0122651]
[1641247149609,0.87291913,46035.0,46034.0,0.0122651]
[1641247150011,0.87291913,46035.0,46034.0,0.2002651]
[1641247150411,0.02172483,46035.0,46034.0,0.2002651]
[1641247151311,0.02172483,46035.0,46034.0,0.0122651]
[1641247151910,0.87405954,46035.0,46034.0,0.0122651]
[1641247152111,0.87405954,46035.0,46034.0,0.1972651]
[1641247153413,0.87405954,46035.0,46034.0,0.0122651]
[1641247153614,0.02172483,46035.0,46034.0,0.0122651]
[1641247154016,0.02172483,46035.0,46034.0,0.1992651]
[1641247155323,0.02172483,46035.0,46034.0,0.0122651]
[1641247156119,0.02172483,46035.0,46034.0,0.2002651]
[1641247156518,0.02172483,46035.0,46034.0,0.3702651]
[1641247158022,0.02172483,46035.0,46034.0,0.5572651]
[1641247159422,0.02172483,46035.0,46034.0,0.1822651]
[1641247160022,0.02172483,46035.0,46034.0,0.3652651]
[1641247160229,1.23846361,46035.0,46034.0,0.3652651]
[1641247161024,0.02172483,46035.0,46034.0,0.3652651]
[1641247161426,0.02172328,46037.0,46034.0,0.1822651]
[1641247162026,0.02172084,46043.0,46035.0,0.0122651]
[1641247162226,0.02172084,46043.0,46038.0,0.17]
[1641247162827,0.14868667,46044.0,46038.0,0.17]
[1641247163027,0.02172328,46039.0,46038.0,0.17]
[1641247163230,0.02172328,46039.0,46034.0,0.177]
[1641247163428,0.02172328,46039.0,46033.0,0.31033567]
[1641247163727,0.02172328,46039.0,46034.0,0.01226581]
[1641247167430,0.02172328,46039.0,46036.0,0.17]
[1641247169231,0.02172298,46038.0,46036.0,0.17]
[1641247169432,0.43439183,46042.0,46037.0,0.01226532]
[1641247169633,0.43439183,46042.0,46039.0,0.17]
[1641247169833,0.43439183,46042.0,46033.0,0.14033567]
[1641247170032,0.43439183,46042.0,46039.0,0.17]
[1641247170432,0.14868667,46044.0,46039.0,0.17]
[1641247171350,0.01,46043.0,46039.0,0.17]
[1641247171733,0.02172326,46040.0,46039.0,0.17]
[1641247173936,0.02172326,46040.0,46033.0,0.31033567]
[1641247174137,0.0217254,46034.0,46030.0,0.17]
[1641247174537,0.01,46036.0,46031.0,0.01226647]
[1641247174937,0.001,46032.0,46031.0,0.01226647]
[1641247175137,0.009351,46032.0,46031.0,0.01226647]
[1641247175335,0.08319872,46032.0,46030.0,0.17]
[1641247175536,0.02272789,46031.0,46030.0,0.17]
[1641247176040,0.21372789,46031.0,46030.0,0.17]
[1641247177438,0.02272789,46031.0,46030.0,0.18226729]
[1641247177639,0.03272789,46031.0,46024.0,0.45067134]
[1641247177840,0.02172969,46025.0,46020.0,1.9712]
[1641247178038,0.01,46023.0,46020.0,1.9712]
[1641247178239,0.01,46022.0,46017.0,0.31033567]
[1641247178739,0.01,46023.0,46017.0,0.31033567]
[1641247179457,0.85493256,46022.0,46017.0,0.31033567]
[1641247179859,0.10307586,46021.0,46017.0,0.17]
[1641247180265,0.14033567,46018.0,46017.0,0.17]
[1641247180458,0.14133567,46018.0,46017.0,0.17]
[1641247180659,0.14968667,46018.0,46014.0,0.17]
[1641247180859,0.001,46015.0,46010.0,0.02]
[1641247181159,0.0632,46015.0,46010.0,0.19]
[1641247181359,0.02173523,46012.0,46010.0,0.19]
[1641247181760,0.0732,46015.0,46010.0,0.19]
[1641247181961,0.02173718,46011.0,46010.0,0.19]
[1641247182161,0.03173718,46011.0,46010.0,0.139]
[1641247182363,0.17207285,46011.0,46010.0,0.130649]
[1641247182562,0.17207285,46011.0,45995.0,2.1394]
[1641247182563,0.17207285,46011.0,46003.0,1.59525793]
[1641247182763,0.02174218,46004.0,46003.0,1.59525793]
[1641247182961,0.11049218,46004.0,45993.0,1.88500857]
[1641247183162,0.01,46001.0,45993.0,1.88500857]
[1641247183361,0.01,46001.0,45993.0,1.85500857]
[1641247183563,0.02174485,45994.0,45993.0,1.85500857]
[1641247183763,0.11665485,45994.0,45993.0,1.85500857]
[1641247183970,0.11665485,45994.0,45990.0,0.47678037]
[1641247184167,0.30665485,45994.0,45990.0,0.17]
[1641247184366,0.30665485,45994.0,45989.0,0.14033567]
[1641247184564,0.30665485,45994.0,45976.0,0.17]
[1641247184565,0.0317486,45990.0,45976.0,0.17]
[1641247184769,0.01,45982.0,45971.0,1.7885]
[1641247184965,0.09104,45982.0,45971.0,1.7885]
[1641247185176,0.09104,45982.0,45963.0,1.8806]
[1641247185364,0.09104,45982.0,45969.0,0.17]
[1641247185564,0.08104,45982.0,45969.0,0.17]
[1641247185764,0.011,45979.0,45969.0,0.169]
[1641247186165,0.011,45979.0,45973.0,0.169]
[1641247186367,0.14033567,45975.0,45965.0,0.178794]
[1641247186965,0.14033567,45975.0,45974.0,0.169]
[1641247187366,0.14033567,45975.0,45974.0,0.349]
[1641247187665,0.14033567,45979.0,45974.0,0.349]
[1641247187868,0.14033567,45979.0,45977.0,0.18]
[1641247188069,0.14033567,45979.0,45978.0,0.169]
[1641247189468,0.16208652,45979.0,45978.0,0.169]
[1641247189669,0.14033567,45979.0,45978.0,0.169]
[1641247189868,0.1620867,45979.0,45978.0,0.169]
[1641247190268,0.3520867,45979.0,45978.0,0.169]
[1641247191570,0.1620867,45979.0,45978.0,0.169]
[1641247191972,0.14033567,45979.0,45978.0,0.169]
[1641247192270,0.32833567,45979.0,45978.0,0.169]
[1641247192671,0.35008934,45979.0,45978.0,0.169]
[1641247193073,0.32833567,45979.0,45978.0,0.169]
[1641247193475,0.14033567,45979.0,45978.0,0.169]
[1641247194275,0.186,45979.0,45978.0,0.169]
[1641247194674,0.186,45979.0,45978.0,0.18127712]
[1641247195274,0.186,45979.0,45978.0,0.169]
[1641247195474,0.02175028,45980.0,45978.0,0.18127716]
[1641247195875,0.14033567,45984.0,45978.0,0.18127716]
[1641247196081,0.02174886,45983.0,45976.0,0.18]
[1641247196280,0.193,45980.0,45976.0,0.18]
[1641247196481,0.193,45980.0,45979.0,0.169]
[1641247198089,0.14033567,45984.0,45979.0,0.169]
[1641247198383,0.19,45980.0,45978.0,0.009794]
[1641247198581,0.19,45980.0,45979.0,0.169]
[1641247200082,0.02174906,45983.0,45979.0,0.169]
[1641247200285,0.02175116,45980.0,45979.0,0.358]
[1641247201485,0.02175116,45980.0,45979.0,0.169]
[1641247202292,0.02175116,45980.0,45979.0,0.357]
[1641247203385,0.02175116,45980.0,45979.0,0.169]
[1641247203994,0.02175116,45980.0,45973.0,0.169]
[1641247204188,0.187,45980.0,45979.0,0.163]
[1641247204387,0.188,45980.0,45979.0,0.163]
[1641247205488,0.001,45980.0,45972.0,0.14033567]
[1641247205691,0.001,45975.0,45972.0,0.14033567]
[1641247205889,0.001,45973.0,45972.0,0.14033567]
[1641247206290,0.001,45973.0,45972.0,0.161]
[1641247206990,0.02275561,45973.0,45972.0,0.161]
[1641247207390,0.02275561,45973.0,45967.0,0.169]
[1641247207592,0.001,45968.0,45967.0,0.169]
[1641247208193,0.18,45968.0,45967.0,0.349]
[1641247209595,0.001,45968.0,45967.0,0.169]
[1641247210197,0.177,45968.0,45967.0,0.349]
[1641247210398,0.19875762,45968.0,45967.0,0.349]
[1641247211498,0.02175762,45968.0,45967.0,0.169]
[1641247212299,0.02175762,45968.0,45967.0,0.357]
[1641247213412,0.0001,45970.0,45967.0,0.357]
[1641247213712,0.0001,45970.0,45969.0,0.18]
[1641247213911,0.02175261,45975.0,45969.0,0.18]
[1641247214110,0.02175261,45975.0,45974.0,0.169]
[1641247215013,0.0218506,45980.0,45974.0,0.35]
[1641247215213,0.0218506,45980.0,45979.0,0.169]
[1641247215411,0.02174803,45985.0,45979.0,0.260934]
[1641247215612,1.7623,45997.0,45984.0,0.169]
[1641247215813,0.14616282,45998.0,45987.0,0.169]
[1641247216414,0.011,45992.0,45987.0,0.169]
[1641247216615,0.02174672,45989.0,45984.0,0.169]
[1641247217017,1.42649849,45998.0,45984.0,0.169]
[1641247217217,0.02174879,45985.0,45983.0,0.14033567]
[1641247217818,0.02175157,45984.0,45983.0,0.14033567]
[1641247219330,0.02175157,45984.0,45975.0,0.178794]
[1641247219520,0.02175157,45984.0,45975.0,0.009794]
[1641247219819,0.02175157,45984.0,45980.0,0.169]
[1641247220421,0.14033567,45981.0,45980.0,0.169]
[1641247223124,0.14033567,45981.0,45975.0,0.009794]
[1641247223322,0.14033567,45981.0,45980.0,0.169]
[1641247228226,0.14033567,45981.0,45980.0,0.196]
[1641247229627,0.14033567,45981.0,45980.0,0.169]
[1641247230227,0.14033567,45981.0,45980.0,0.355]
[1641247230629,0.14033567,45981.0,45980.0,0.535]
[1641247230829,0.14033567,45981.0,45980.0,0.355]
[1641247231527,0.14033567,45981.0,45980.0,0.169]
[1641247232328,0.14033567,45981.0,45980.0,0.356]
[1641247233530,0.14033567,45981.0,45980.0,0.36827808]
[1641247233733,0.02175157,45984.0,45980.0,0.169]
[1641247233930,0.02175157,45984.0,45983.0,0.169]
[1641247236434,0.02175157,45984.0,45983.0,0.35]
[1641247237032,0.02175157,45984.0,45983.0,0.36227807]
[1641247237538,0.02174686,45988.0,45983.0,0.36227807]
[1641247237732,0.02174686,45988.0,45987.0,0.169]
[1641247238134,0.02174686,45988.0,45987.0,0.18127807]
[1641247238335,0.02174686,45988.0,45987.0,0.32727807]
[1641247240335,0.02174686,45988.0,45987.0,0.32827807]
[1641247241738,0.02174686,45988.0,45987.0,0.169]
[1641247242238,0.02174686,45988.0,45987.0,0.316]
[1641247243538,0.10015686,45988.0,45984.0,0.169]
[1641247243739,0.02175148,45985.0,45982.0,0.169]
[1641247243939,0.011,45983.0,45982.0,0.169]
[1641247244138,0.02175148,45985.0,45981.0,0.169]
[1641247244439,0.21075148,45985.0,45982.0,0.146]
[1641247244639,0.14033567,45983.0,45982.0,0.146]
[1641247245740,0.14033567,45983.0,45981.0,0.169]
[1641247246238,0.32833567,45983.0,45981.0,0.169]
[1641247247639,0.14033567,45983.0,45981.0,0.169]
[1641247248339,0.32733567,45983.0,45981.0,0.169]
[1641247249739,0.14033567,45983.0,45981.0,0.169]
[1641247250340,0.32733567,45983.0,45981.0,0.169]
[1641247251742,0.14033567,45983.0,45981.0,0.169]
[1641247252341,0.32933567,45983.0,45981.0,0.169]
[1641247253746,0.14033567,45983.0,45981.0,0.169]
[1641247254245,0.32833567,45983.0,45981.0,0.169]
[1641247255646,0.14033567,45983.0,45981.0,0.169]
[1641247256446,0.32833567,45983.0,45981.0,0.169]
[1641247257850,0.14033567,45983.0,45981.0,0.169]
[1641247258251,0.32833567,45983.0,45981.0,0.169]
[1641247259753,0.14033567,45983.0,45981.0,0.169]
[1641247260251,0.32933567,45983.0,45981.0,0.169]
[1641247261464,0.43495821,45982.0,45979.0,0.169]
[1641247261667,0.43495821,45982.0,45967.0,1.94533567]
[1641247262065,0.43495821,45982.0,45968.0,0.03781726]
[1641247262265,0.011,45978.0,45969.0,0.049]
[1641247262466,0.011,45978.0,45972.0,0.169]
[1641247262666,0.14033567,45977.0,45972.0,0.169]
[1641247262868,0.14033567,45977.0,45973.0,0.01228065]
[1641247263068,0.84447321,45974.0,45973.0,0.01228065]
[1641247264368,0.84447321,45974.0,45973.0,0.15228065]
[1641247264369,1.02247321,45974.0,45973.0,0.15228065]
[1641247265771,1.20639029,45976.0,45973.0,0.01228065]
[1641247266374,1.20639029,45975.0,45968.0,0.01228065]
[1641247266571,1.20639029,45975.0,45974.0,0.01228065]
[1641247266774,1.20639029,45975.0,45974.0,0.169]
[1641247266973,1.20639029,45975.0,45974.0,0.18128065]
[1641247268472,0.195,45975.0,45974.0,0.18128065]
[1641247271577,1.20639029,45976.0,45974.0,0.18128065]
[1641247271976,1.20639029,45976.0,45975.0,0.01228065]
[1641247272376,1.38639029,45976.0,45975.0,0.01228065]
[1641247272577,0.18,45976.0,45975.0,0.01228065]
[1641247273779,0.14033567,45977.0,45975.0,0.01228065]
[1641247274378,0.29933567,45977.0,45975.0,0.16728065]
[1641247274780,0.29933567,45977.0,45976.0,0.01228065]
[1641247275778,0.14033567,45977.0,45976.0,0.01228065]
[1641247276178,0.14033567,45977.0,45975.0,0.01228065]
[1641247276378,0.14033567,45977.0,45976.0,0.01228065]
[1641247276579,0.30433567,45977.0,45976.0,0.19028065]
[1641247276781,0.30433567,45977.0,45976.0,0.178]
[1641247277179,0.30433567,45977.0,45976.0,0.19028065]
[1641247277781,0.14033567,45977.0,45976.0,0.01228065]
[1641247278280,0.14033567,45977.0,45975.0,0.01228065]
[1641247278479,0.23933567,45977.0,45976.0,0.17728065]
[1641247279782,0.14033567,45977.0,45976.0,0.01228065]
[1641247280283,0.15133567,45983.0,45976.0,0.01228065]
[1641247280487,0.14033567,45983.0,45982.0,0.169]
[1641247280683,0.15133567,45983.0,45982.0,0.169]
[1641247280883,0.14033567,45983.0,45982.0,0.169]
[1641247282483,0.33233567,45983.0,45982.0,0.169]
[1641247283888,0.14033567,45983.0,45982.0,0.169]
[1641247284588,0.33233567,45983.0,45982.0,0.169]
[1641247285986,0.14033567,45983.0,45982.0,0.169]
[1641247286486,0.33233567,45983.0,45982.0,0.169]
[1641247287794,0.14033567,45983.0,45982.0,0.169]
[1641247288589,0.33233567,45983.0,45982.0,0.169]
[1641247289793,0.14033567,45983.0,45982.0,0.169]
[1641247290593,0.32933567,45983.0,45982.0,0.169]
[1641247291892,0.14033567,45983.0,45982.0,0.169]
[1641247292492,0.33033567,45983.0,45982.0,0.169]
[1641247293596,0.33033567,45983.0,45979.0,0.169]
[1641247293797,0.14033567,45983.0,45979.0,0.169]
[1641247294697,0.32533567,45983.0,45979.0,0.169]
[1641247295897,0.14033567,45983.0,45979.0,0.169]
[1641247296298,0.15133567,45983.0,45968.0,0.18]
[1641247296499,0.33833567,45983.0,45977.0,0.169]
[1641247296798,0.33833567,45983.0,45969.0,0.01228045]
[1641247296998,0.33833567,45983.0,45978.0,0.169]
[1641247297401,0.32733567,45983.0,45978.0,0.169]
[1641247297798,0.14033567,45983.0,45978.0,0.169]
[1641247298201,0.14033567,45983.0,45971.0,0.18]
[1641247298401,0.14033567,45983.0,45981.0,0.169]
[1641247298600,0.32733567,45983.0,45981.0,0.169]
[1641247299801,0.14033567,45983.0,45981.0,0.169]
[1641247300502,0.32633567,45983.0,45981.0,0.169]
[1641247301905,0.14033567,45983.0,45981.0,0.169]
[1641247302508,0.32833567,45983.0,45981.0,0.169]
[1641247303908,0.14033567,45983.0,45981.0,0.169]
[1641247304609,0.32933567,45983.0,45981.0,0.169]
[1641247305011,0.32933567,45983.0,45971.0,0.18]
[1641247305209,0.32933567,45983.0,45978.0,0.169]
[1641247305808,0.14033567,45983.0,45978.0,0.169]
[1641247306109,0.14033567,45983.0,45971.0,0.18]
[1641247306510,0.32833567,45983.0,45972.0,0.0122806]
[1641247307010,0.32833567,45983.0,45981.0,0.169]
[1641247307811,0.14033567,45983.0,45981.0,0.169]
[1641247308712,0.32533567,45983.0,45979.0,0.169]
[1641247309814,0.14033567,45983.0,45979.0,0.169]
[1641247310527,0.32933567,45983.0,45979.0,0.169]
[1641247311832,0.14033567,45983.0,45979.0,0.169]
[1641247312533,0.32533567,45983.0,45979.0,0.169]
[1641247315934,0.14033567,45983.0,45979.0,0.169]
[1641247316634,0.32533567,45983.0,45979.0,0.169]
[1641247317835,0.14033567,45983.0,45979.0,0.169]
[1641247318536,0.32433567,45983.0,45979.0,0.169]
[1641247319936,0.14033567,45983.0,45979.0,0.169]
[1641247320139,0.14033567,45983.0,45982.0,0.169]
[1641247320342,0.14033567,45989.0,45982.0,0.35]
[1641247320539,0.0001,45990.0,45988.0,0.169]
[1641247320738,0.0001,45990.0,45989.0,0.009794]
[1641247322642,0.1801,45990.0,45989.0,0.192794]
[1641247323940,0.0001,45990.0,45989.0,0.009794]
[1641247324550,0.1061,45990.0,45989.0,0.195794]
[1641247325845,0.0001,45990.0,45989.0,0.009794]
[1641247326644,0.0001,45990.0,45989.0,0.378794]
[1641247327852,0.0001,45990.0,45989.0,0.189794]
[1641247328645,0.0001,45990.0,45989.0,0.705355]
[1641247328846,0.02173991,46004.0,45992.0,0.43485772]
[1641247329046,0.02173991,46004.0,46003.0,0.169]
[1641247329246,0.02173991,46004.0,46003.0,0.26289]
[1641247329446,0.02173991,46004.0,46003.0,0.40322567]
[1641247329846,0.21534914,46005.0,46004.0,0.4347432]
[1641247330047,0.0001,46010.0,46004.0,0.4357432]
[1641247330357,0.0001,46010.0,46009.0,0.78369594]
[1641247330559,0.1721,46010.0,46009.0,0.79348994]
[1641247330748,0.1721,46010.0,46009.0,0.79522594]
[1641247331146,0.1721,46010.0,46009.0,0.79348994]
[1641247331546,0.1721,46010.0,46009.0,1.07416128]
[1641247331947,0.0001,46010.0,46009.0,1.07416128]
[1641247332150,0.0001,46010.0,46009.0,0.45946534]
[1641247332550,0.0001,46010.0,46009.0,0.64846534]
[1641247333350,0.0218374,46010.0,46009.0,0.64846534]
[1641247333750,0.0218374,46010.0,46009.0,0.15012967]
[1641247334349,0.0328374,46010.0,46009.0,0.14033567]
[1641247335351,0.0328374,46010.0,46003.0,0.14033567]
[1641247335653,0.02174211,46004.0,46003.0,0.14033567]
[1641247336650,0.21174211,46004.0,46003.0,0.14033567]
[1641247337851,0.02174211,46004.0,46003.0,0.14033567]
[1641247338453,0.21374211,46004.0,46003.0,0.14033567]
[1641247339853,0.02174211,46004.0,46003.0,0.14033567]
[1641247340455,0.20874211,46004.0,46003.0,0.23133567]
[1641247341356,0.187,46004.0,46003.0,0.23133567]
[1641247341556,0.187,46004.0,46003.0,0.29996567]
[1641247341955,0.02173801,46008.0,46003.0,0.20896567]
[1641247342555,0.18873801,46008.0,46003.0,0.39596567]
[1641247342756,0.18873801,46008.0,46007.0,0.169]
[1641247343855,0.02173801,46008.0,46007.0,0.169]
[1641247344557,0.02173801,46008.0,46007.0,0.359]
[1641247344757,0.0001,46010.0,46007.0,0.548794]
[1641247345257,0.14033567,46024.0,46010.0,0.43458367]
[1641247345456,0.14033567,46024.0,46019.0,0.169]
[1641247345656,0.36633022,46025.0,46019.0,0.25355]
[1641247345956,0.37733022,46025.0,46019.0,0.25355]
[1641247346556,0.1901,46020.0,46019.0,0.30055]
[1641247346758,0.1901,46020.0,46019.0,0.216]
[1641247347055,0.21183269,46020.0,46019.0,0.216]
[1641247347256,0.22283269,46020.0,46019.0,0.047]
[1641247347456,0.21183269,46020.0,46019.0,0.047]
[1641247347956,0.02183269,46020.0,46016.0,0.169]
[1641247348558,0.011,46018.0,46016.0,0.127]
[1641247348759,0.23706577,46015.0,46012.0,0.169]
[1641247350557,0.42406577,46015.0,46012.0,0.169]
[1641247351160,0.42406577,46015.0,46013.0,0.325486]
[1641247351964,0.23706577,46015.0,46012.0,0.169]
[1641247352565,0.42206577,46015.0,46012.0,0.169]
[1641247353867,0.23706577,46015.0,46012.0,0.169]
[1641247354466,0.42106577,46015.0,46012.0,0.169]
[1641247355067,0.42106577,46015.0,46013.0,0.009794]
[1641247355466,0.42106577,46015.0,46013.0,0.333641]
[1641247355667,0.42106577,46015.0,46013.0,0.009794]
[1641247355866,0.23706577,46015.0,46013.0,0.009794]
[1641247356069,0.84361345,46023.0,46014.0,0.18]
[1641247356268,1.20516207,46025.0,46022.0,0.349]
[1641247356571,0.0001,46030.0,46023.0,0.009794]
[1641247356768,0.0001,46030.0,46029.0,0.169]
[1641247357867,0.0001,46030.0,46029.0,0.30933567]
[1641247358468,0.1861,46030.0,46029.0,0.30933567]
[1641247359872,0.0001,46030.0,46029.0,0.30933567]
[1641247360474,0.1861,46030.0,46029.0,0.30933567]
[1641247362575,0.1881,46030.0,46029.0,0.30933567]
[1641247363778,0.0001,46030.0,46029.0,0.30933567]
[1641247364479,0.1831,46030.0,46029.0,0.30933567]
[1641247365879,0.0001,46030.0,46029.0,0.30933567]
[1641247366488,0.1861,46030.0,46029.0,0.30933567]
[1641247367790,0.0001,46030.0,46029.0,0.30933567]
[1641247368592,0.1851,46030.0,46029.0,0.30933567]
[1641247369793,0.0001,46030.0,46029.0,0.30933567]
[1641247370494,0.1891,46030.0,46029.0,0.30933567]
[1641247372499,0.1931,46030.0,46029.0,0.30933567]
[1641247372698,0.02,46035.0,46029.0,0.30933567]
[1641247372898,0.0001,46040.0,46034.0,0.349]
[1641247373101,0.0001,46040.0,46037.0,0.18]
[1641247373303,0.0001,46040.0,46039.0,0.169]
[1641247374100,0.0001,46040.0,46039.0,0.44967134]
[1641247374503,0.0001,46040.0,46039.0,0.63667134]
[1641247374703,1.69395597,46050.0,46042.0,0.33540389]
[1641247374902,0.0001,46050.0,46049.0,0.169]
[1641247375102,0.0001,46050.0,46049.0,0.23454]
[1641247376102,0.0001,46050.0,46049.0,0.37487567]
[1641247376501,0.0001,46050.0,46049.0,0.54287567]
[1641247378003,0.0001,46050.0,46049.0,0.37487567]
[1641247378602,0.0001,46050.0,46049.0,0.54887567]
[1641247378803,0.0001,46050.0,46049.0,0.72887567]
[1641247379202,0.0001,46050.0,46049.0,1.05271767]
[1641247379804,0.0001,46050.0,46049.0,0.87271767]
[1641247380005,0.0001,46050.0,46049.0,0.69871767]
[1641247380202,0.0001,46050.0,46049.0,0.83905334]
[1641247380405,0.0001,46050.0,46049.0,0.51521134]
[1641247380603,0.0001,46050.0,46049.0,0.70821134]
[1641247381103,0.0001,46050.0,46049.0,1.03323634]
[1641247381902,0.0001,46050.0,46049.0,0.84023634]
[1641247382303,0.0001,46060.0,46049.0,0.84023634]
[1641247382505,0.0001,46060.0,46049.0,0.70821134]
[1641247382702,0.0001,46060.0,46057.0,0.169]
[1641247383504,0.011,46058.0,46057.0,0.169]
[1641247384605,0.0001,46060.0,46057.0,0.169]
[1641247385008,0.011,46059.0,46057.0,0.169]
[1641247385207,0.0001,46060.0,46057.0,0.169]
[1641247385408,0.011,46058.0,46054.0,0.14033567]
[1641247385607,0.0001,46060.0,46054.0,0.14033567]
[1641247386008,0.011,46055.0,46054.0,0.14033567]
[1641247386607,0.011,46055.0,46054.0,0.32333567]
[1641247386909,0.0001,46060.0,46054.0,0.32333567]
[1641247387108,0.0001,46060.0,46055.0,0.169]
[1641247388409,0.011,46056.0,46055.0,0.169]
[1641247388608,0.011,46056.0,46054.0,0.14033567]
[1641247389510,0.0001,46060.0,46054.0,0.14033567]
[1641247390010,0.0001,46060.0,46055.0,0.169]
[1641247391112,0.0001,46060.0,46054.0,0.14033567]
[1641247391113,0.011,46056.0,46054.0,0.14033567]
[1641247391313,0.011,46059.0,46054.0,0.14033567]
[1641247391513,0.011,46059.0,46055.0,0.169]
[1641247392717,0.0001,46060.0,46055.0,0.169]
[1641247393715,0.011,46059.0,46055.0,0.169]
[1641247394115,0.011,46056.0,46054.0,0.14033567]
[1641247394317,0.011,46057.0,46054.0,0.14033567]
[1641247394616,0.0001,46060.0,46054.0,0.14033567]
[1641247394815,0.0001,46060.0,46058.0,0.169]
[1641247395915,0.0001,46060.0,46054.0,0.14033567]
[1641247396215,0.0001,46060.0,46056.0,0.169]
[1641247396817,0.0001,46060.0,46054.0,0.14033567]
[1641247397018,0.0001,46060.0,46059.0,0.169]
[1641247397219,0.0111,46060.0,46059.0,0.169]
[1641247397419,0.0001,46060.0,46059.0,0.169]
[1641247398219,0.0001,46060.0,46059.0,0.31912967]
[1641247399421,0.0001,46060.0,46059.0,0.82391367]
[1641247400521,0.0001,46060.0,46059.0,1.00991367]
[1641247401526,0.0001,46060.0,46059.0,0.82991367]
[1641247402125,0.0001,46060.0,46059.0,1.00991367]
[1641247402526,0.0001,46060.0,46059.0,1.43367936]
[1641247403125,0.0001,46060.0,46059.0,1.43467936]
[1641247403924,0.0001,46060.0,46059.0,1.24367936]
[1641247404328,0.0001,46060.0,46059.0,1.38401503]
[1641247404527,0.0001,46060.0,46059.0,1.57901503]
[1641247405727,0.0001,46070.0,46065.0,0.34882568]
[1641247405928,0.0001,46070.0,46069.0,0.169]
[1641247406130,0.0001,46070.0,46069.0,0.25399]
[1641247406328,0.0001,46070.0,46069.0,0.53466134]
[1641247406529,0.0001,46070.0,46069.0,0.72166134]
[1641247406929,0.0001,46070.0,46069.0,1.04933634]
[1641247407744,0.0001,46070.0,46069.0,1.2510377]
[1641247408145,0.0001,46070.0,46069.0,1.22933634]
[1641247408345,0.0001,46070.0,46069.0,1.04933634]
[1641247408545,0.0001,46070.0,46069.0,1.23533634]
[1641247409744,0.0001,46070.0,46069.0,1.05633634]
[1641247409945,0.0001,46070.0,46069.0,1.04333634]
[1641247410144,0.0001,46070.0,46069.0,1.04233634]
[1641247410550,0.0001,46070.0,46069.0,1.23733634]
[1641247410747,0.0001,46070.0,46069.0,1.05733634]
[1641247411546,0.0001,46070.0,46069.0,1.23733634]
[1641247411946,0.0001,46070.0,46069.0,1.04233634]
[1641247412346,0.0001,46070.0,46069.0,0.86233634]
[1641247412546,0.011,46079.0,46070.0,0.18693673]
[1641247412747,0.011,46079.0,46077.0,0.169]
[1641247413749,0.0001,46080.0,46074.0,0.169]
[1641247413948,0.011,46079.0,46074.0,0.169]
[1641247414447,0.011,46079.0,46078.0,0.14033567]
[1641247415247,0.0001,46080.0,46078.0,0.14033567]
[1641247415650,0.011,46079.0,46078.0,0.14033567]
[1641247419656,0.0001,46080.0,46078.0,0.14033567]
[1641247420958,0.0111,46080.0,46078.0,0.14033567]
[1641247421363,0.0001,46080.0,46078.0,0.14033567]
[1641247421964,0.0111,46080.0,46078.0,0.14033567]
[1641247422168,0.0001,46080.0,46078.0,0.14033567]
[1641247422560,0.011,46079.0,46078.0,0.14033567]
[1641247422760,0.0001,46080.0,46078.0,0.14033567]
[1641247424961,0.0111,46080.0,46078.0,0.14033567]
[1641247431377,0.0001,46080.0,46078.0,0.14033567]
[1641247434673,0.0001,46080.0,46078.0,0.30933567]
[1641247434872,0.0001,46080.0,46079.0,0.169]
[1641247437477,0.0001,46080.0,46078.0,0.14033567]
[1641247438980,0.02170577,46079.0,46069.0,0.28067134]
[1641247439178,0.011,46073.0,46069.0,0.28067134]
[1641247440478,0.011,46073.0,46069.0,0.14033567]
[1641247440682,0.011,46070.0,46069.0,0.30433567]
[1641247440879,0.1055,46070.0,46069.0,0.30433567]
[1641247441178,0.12720999,46070.0,46069.0,0.30433567]
[1641247441683,1.3111032,46070.0,46069.0,0.48312967]
[1641247441879,1.3111032,46070.0,46069.0,0.31912967]
[1641247442681,0.2725,46070.0,46069.0,0.50312967]
[1641247443983,0.0945,46070.0,46069.0,0.31912967]
[1641247444185,1.2166032,46071.0,46069.0,0.31912967]
[1641247444885,1.3856032,46071.0,46069.0,0.49612967]
[1641247445287,1.3856032,46071.0,46069.0,0.31733567]
[1641247446088,1.2166032,46071.0,46069.0,0.14033567]
[1641247446288,0.85118789,46070.0,46069.0,0.14033567]
[1641247446690,0.85118789,46070.0,46069.0,0.31733567]
[1641247447988,0.85118789,46070.0,46069.0,0.14033567]
[1641247448189,0.011,46076.0,46069.0,0.14033567]
[1641247448392,0.16204141,46077.0,46071.0,0.169]
[1641247448900,0.193,46076.0,46071.0,0.169]
[1641247449502,0.193,46076.0,46069.0,0.14033567]
[1641247449801,0.193,46076.0,46070.0,0.169]
[1641247450202,0.16204141,46077.0,46070.0,0.169]
[1641247450905,0.193,46076.0,46070.0,0.169]
[1641247451909,0.16204141,46077.0,46070.0,0.169]
[1641247452104,0.011,46076.0,46070.0,0.169]
[1641247452304,0.16204141,46077.0,46070.0,0.169]
[1641247452705,0.011,46073.0,46070.0,0.169]
[1641247453104,0.193,46076.0,46070.0,0.169]
[1641247453505,0.204,46076.0,46070.0,0.169]
[1641247453905,0.193,46076.0,46070.0,0.169]
[1641247454107,0.0001,46080.0,46075.0,0.169]
[1641247454307,0.0001,46080.0,46078.0,0.169]
[1641247454708,0.1921,46080.0,46079.0,0.14033567]
[1641247456108,0.0001,46080.0,46079.0,0.14033567]
[1641247456710,0.0001,46080.0,46079.0,0.65804867]
[1641247458115,0.0001,46080.0,46079.0,0.46504867]
[1641247458415,0.0001,46080.0,46079.0,0.66607031]
[1641247458720,0.0001,46090.0,46079.0,0.86007031]
[1641247458915,0.0001,46090.0,46085.0,0.18]
[1641247459119,0.0001,46090.0,46089.0,0.169]